Cogmind - Beta 14 @@@ ROGUE MODE // 2025.02.28 @ 17:40:44 Player: Kate+Gabe4evr Result: Destroyed self with Improved Grenade Launcher Performance ------------- Evolutions (2) 1000 Regions Visited (4) 800 Robots Destroyed (43) 215 Value Destroyed (974) 974 Prototype IDs (1) 20 Alien Tech Used (0) 0 Bonus (0) 0 TOTAL SCORE: 3009 Bonus ------- None Cogmind --------- Core Integrity 0/550 Matter 83/300 Energy 100/100 System Corruption 3% Temperature Cool (0) Movement Core (200) Ox3 Location -8/Materials Parts ------- > --- POWER (2) -------- (None) > --- PROPULSION (4) --- (None) > --- UTILITY (3) ------ Small Storage Unit > --- WEAPON (2) ------- Improved Grenade Launcher > --- INVENTORY (8) ---- Advanced Treads Wheel Huge Storage Unit Targeting Computer Light Armor Plating Plasma Cutter Blade Trap Blade Trap Peak State ------------ > --- POWER ------------ Improved Ion Engine Improved Ion Engine > --- PROPULSION ------- Cargo Legs Armored Wheel Armored Wheel > --- UTILITY ---------- Small Storage Unit Humpback Signal Interpreter Advanced Targeting Computer > --- WEAPON ----------- Heavy Particle Cannon Assault Rifle > --- INVENTORY -------- Improved Ion Engine Light Treads Light Treads Advanced Treads Wheel Huge Storage Unit Experimental Sensor Array Targeting Computer Targeting Computer Weapon Shielding Light Armor Plating Light Armor Plating Plasma Cutter Plasma Cutter Makeshift Hammer Blade Trap Blade Trap Blade Trap [Rating: 38] Favorites ----------- Power Light Ion Engine Engine Light Ion Engine Propulsion Wheel Leg Cargo Legs Wheel Wheel Utility Small Storage Unit Storage Small Storage Unit Processor Signal Interpreter Protection Weapon Shielding Weapon Assault Rifle Energy Gun EM Pulse Gun Energy Cannon Heavy Particle Cannon Ballistic Gun Assault Rifle Launcher Improved Grenade Launcher Impact Weapon Makeshift Hammer Build | -11 -10 -10 -10 -8 ------- Run | Yrd Mat Min Sub Mat Slots Evolved 4 | . . . . 4 Power 1 | . . . . 1 Propulsion 2 | . . . . 2 Utility 1 | . . . . 1 Weapon . | . . . . . Parts Attached 32 | 6 1 5 5 15 Power 9 | 1 . 2 1 5 Engine 9 | 1 . 2 1 5 Core . | . . . . . Reactor . | . . . . . Propulsion 8 | 2 . 2 1 3 Treads . | . . . . . Leg 1 | . . . 1 . Wheel 7 | 2 . 2 . 3 Hover . | . . . . . Flight . | . . . . . Utility 5 | 1 1 1 1 1 Device . | . . . . . Storage 2 | 1 . . 1 . Processor 2 | . . 1 . 1 Hackware . | . . . . . Protection 1 | . 1 . . . Artifact . | . . . . . Weapon 10 | 2 . . 2 6 Energy Gun 2 | 1 . . . 1 Energy Cannon 1 | . . . . 1 Ballistic Gun 4 | 1 . . 1 2 Ballistic Cannon . | . . . . . Launcher 2 | . . . . 2 Special Weapon . | . . . . . Impact Weapon 1 | . . . 1 . Slashing Weapon . | . . . . . Piercing Weapon . | . . . . . Special Melee Weapon . | . . . . . Unidentified Prototypes 1 | . . . 1 . Parts Lost 14 | . . 1 2 11 Power 4 | . . . 1 3 Propulsion 4 | . . 1 . 3 Utility 1 | . . . . 1 Weapon 5 | . . . 1 4 Highest Loss Streak 8 | . . 1 1 8 To Critical Strikes . | . . . . . Average Slot Usage (%) 84 | . 89 98 78 70 Engine 12 | . 14 14 11 12 Leg 4 | . . . 8 6 Wheel 15 | . 28 26 5 10 Storage 15 | . 14 14 17 14 Processor 9 | . . 5 11 13 Protection 3 | . 4 8 . . Energy Gun 7 | . 14 14 1 3 Ballistic Gun 11 | . 14 14 12 5 Impact Weapon 3 | . . . 8 1 Peak Build Rating 38 | 6 7 8 27 38 Average Rating 18 | 4 6 7 22 30 On Entrance 9 | . 6 7 8 27 Naked Turns . | . . . . . Heaviest Build 227 | 12 13 13 213 227 Greatest Support 55 | 26 26 26 55 55 Greatest Overweight (x) 74 | . . . 4 74 Average Overweight (x) 1 | . . . . 6 Largest Inventory Capacity 35 | 8 8 8 35 35 Average Capacity 18 | 7 8 8 23 31 Most Carried 20 | 2 2 8 8 20 Average Carried 7 | 1 2 5 7 13 Final Capacity 35 | 8 8 8 35 8 Final Carried 8 | 2 2 7 7 8 Class Distribution -------------------- 60% | Mutant 39% | Hauler-Mutant Dominant Class ---------------- Mutant | -10/Materials Mutant | -10/Mines Hauler-Mutant | -10/Subcaves Hauler-Mutant | -8/Materials Resources | -11 -10 -10 -10 -8 ----------- Run | Yrd Mat Min Sub Mat Matter Collected 767 | 249 . 181 76 261 Remotely . | . . . . . Salvage Created 1186 | . . 380 138 668 Parts 95 | . . 23 9 63 Haulers Intercepted . | . . . . . Recyclers Shooed . | . . . . . Parts Field Recycled . | . . . . . Retrieved Matter . | . . . . . Parts Self-Destructed 5 | . . . 5 . Prevented 4 | . . . 4 . Kills | -11 -10 -10 -10 -8 ------- Run | Yrd Mat Min Sub Mat Combat Hostiles Destroyed 37 | . . 9 6 22 Guns 29 | . . 9 5 15 Cannons 4 | . . . . 4 AOE 3 | . . . . 3 Classes Destroyed 7 | . . 4 1 2 Worker 4 | . . 1 . 3 Tunneler 1 | . . 1 . . Watcher 1 | . . . . 1 Swarmer 20 | . . 3 5 12 Grunt 10 | . . 6 . 4 Brawler 2 | . . . . 2 Sentry 5 | . . . 1 4 Best Kill Streak 6 | . . 3 3 6 Combat Bots Only 4 | . . 3 3 4 Max Kills in Single Turn 3 | . . 1 1 3 Gunslinging . | . . . . . Exploded 2 | . . . . 2 Melee . | . . . . . Uniques/NPCs Destroyed . | . . . . . Combat | -11 -10 -10 -10 -8 -------- Run | Yrd Mat Min Sub Mat Hostile Shots Fired 284 | . 2 31 37 214 Missed 58 | . 1 10 10 37 Damage Taken 2750 | . 16 271 253 2210 Core 687 | . . 65 63 559 Absorbed by Shields . | . . . . . Redirected to Shielding 15 | . . 15 . . Core Remaining (%) 74 | 100 . . 48 . Volleys Fired 109 | . . 26 12 71 Largest 2 | . . 2 2 2 Hottest 95 | . . 60 60 95 Shots Fired 179 | . . 53 21 105 Gun 155 | . . 53 21 81 Cannon 15 | . . . . 15 Launcher 9 | . . . . 9 Special . | . . . . . Kinetic 97 | . . 26 16 55 Thermal 41 | . . . . 41 Explosive 9 | . . . . 9 Electromagnetic 32 | . . 27 5 . Robot Hit Streak 10 | . . 8 5 10 Robot Miss Streak 2 | . . 2 2 2 Penetration Max . | . . . . . Secondary Targets 4 | . . 1 2 1 Max Gunslinging Chain 1 | . . 1 1 1 Shots Hit Robots 114 | . . 37 13 64 Core Hits 65 | . . 19 6 40 Critical Kills . | . . . . . Critical Parts Destroyed . | . . . . . Critical Strikes 1 | . . 1 . . Corrupt 1 | . . 1 . . Melee Attacks 7 | . . . 7 . Impact 7 | . . . 7 . Slashing . | . . . . . Piercing . | . . . . . Sneak Attacks . | . . . . . Combat Hostiles . | . . . . . Follow-up Attacks . | . . . . . Damage Inflicted 2211 | . . 549 225 1437 Guns 1323 | . . 458 137 728 Cannons 275 | . . . . 275 Explosions 524 | . . 91 . 433 Melee 88 | . . . 88 . Ramming 1 | . . . . 1 Kinetic 746 | . . 206 92 448 Thermal 646 | . . 91 . 555 Explosive 433 | . . . . 433 Electromagnetic 297 | . . 252 45 . Impact 88 | . . . 88 . Slashing . | . . . . . Piercing . | . . . . . Highest Corruption 3 | . 2 2 2 3 Average Corruption 2 | . 2 2 2 3 Corruption Purged . | . . . . . Corruption Blocked . | . . . . . Effects 36 | . 1 17 13 5 Message Errors 6 | . . 4 1 1 Matter Fused 10 | . 1 4 5 . Heat Flow Errors 4 | . . 1 1 2 Energy Discharges 7 | . . 4 2 1 Data Loss (minor) 2 | . . 1 . 1 Data Loss (major) 2 | . . 1 1 . Misfires 4 | . . 1 3 . Alerts 1 | . . 1 . . Overload Shots . | . . . . . Overflow Damage 53 | . . . 48 5 Projectiles 5 | . . . . 5 Explosions . | . . . . . Melee 48 | . . . 48 . Knockbacks . | . . . . . Impact . | . . . . . Kinetic . | . . . . . Secondary . | . . . . . Self-Inflicted Damage 45 | . . . . 45 Shots 1 | . . . . 1 Rammed 1 | . . . . 1 Targets Rammed 1 | . . . . 1 Kicked . | . . . . . Crushed . | . . . . . Highest Temperature 613 | . . 200 232 613 Average Temperature 146 | . . 33 133 182 Received Heat Transfer 870 | . 9 123 18 720 Effects 16 | . . . . 16 Shutdowns 3 | . . . . 3 Interference 1 | . . . . 1 Matter Decay 1 | . . . . 1 Short Circuit 4 | . . . . 4 Damage (major) 5 | . . . . 5 Damage (core) 2 | . . . . 2 Siege Activations . | . . . . . Robots Corrupted 1 | . . . 1 . Combat Hostiles 1 | . . . 1 . Parts Fried 4 | . . 1 3 . Impact Corruptions 2 | . . . 2 . Robots Melted . | . . . . . Combat Hostiles . | . . . . . Parts Melted 1 | . . . . 1 Heat Transferred 1210 | . . 100 . 1110 Parts Sabotaged . | . . . . . Parts Stolen . | . . . . . Parts Stripped . | . . . . . Power Chain Reactions 1 | . . 1 . . Alert | -11 -10 -10 -10 -8 ------- Run | Yrd Mat Min Sub Mat Peak Influence 396 | . 30 187 . 396 Initial 11 | . . 11 . . Average 105 | . 2 77 . 178 Maximum Alert Level 1 | . . . . 1 Low Security (%) 84 | 100 100 100 . 58 Level 1 15 | . . . . 41 Level 2 . | . . . . . Level 3 . | . . . . . Level 4 . | . . . . . Level 5 . | . . . . . High Security . | . . . . . Max Security . | . . . . . Squads Dispatched 4 | . . . . 4 Investigation . | . . . . . Extermination . | . . . . . Reinforcement 1 | . . . . 1 Assault . | . . . . . Garrison 3 | . . . . 3 Intercept . | . . . . . Searches Triggered . | . . . . . Construction Impeded 1 | . . . . 1 Haulers Reinforced . | . . . . . Active Scanning Responses . | . . . . . Cargo Convoy Interrupts . | . . . . . Stealth | -11 -10 -10 -10 -8 --------- Run | Yrd Mat Min Sub Mat Distress Signals 4 | . . . . 4 Communications Jammed . | . . . . . Distress Signals . | . . . . . Times Spotted 49 | . 2 11 6 30 Peak Tracking Total 6 | . 1 2 3 6 Tactical Retreats 3 | . . 2 . 1 Traps | -11 -10 -10 -10 -8 ------- Run | Yrd Mat Min Sub Mat Traps Triggered 4 | . 1 . . 3 Indirectly . | . . . . . Trap Hack Attempts . | . . . . . Triggered . | . . . . . Disarmed . | . . . . . Reprogrammed . | . . . . . Reused . | . . . . . Traps Extracted . | . . . . . Installed . | . . . . . Triggered . | . . . . . Most Traps Carried 3 | . . 3 3 3 Machines | -11 -10 -10 -10 -8 ---------- Run | Yrd Mat Min Sub Mat Machines Disabled 2 | . . 1 1 . Max in Single Turn 1 | . . 1 1 . Machines Repaired . | . . . . . Machines Dismantled . | . . . . . Machines Sabotaged . | . . . . . Overloaded Fab Kills . | . . . . . Hacking | -11 -10 -10 -10 -8 --------- Run | Yrd Mat Min Sub Mat Machines Accessed 1 | . . . 1 . Terminals . | . . . . . Fabricators . | . . . . . Repair Stations . | . . . . . Recycling Units . | . . . . . Scanalyzers . | . . . . . Garrison Access . | . . . . . Total Hacks 8 | . . . 8 . Successful 8 | . . . 8 . Failed . | . . . . . Catastrophic . | . . . . . Database Lockouts . | . . . . . Manual . | . . . . . Terminals . | . . . . . Fabricators . | . . . . . Repair Stations . | . . . . . Recycling Units . | . . . . . Scanalyzers . | . . . . . Garrison Access . | . . . . . Terminal Hacks 8 | . . . 8 . Record 8 | . . . 8 . Fabricator Hacks . | . . . . . Repair Station Hacks . | . . . . . Recycling Unit Hacks . | . . . . . Scanalyzer . | . . . . . Garrison Access Hacks . | . . . . . Unauthorized Hacks . | . . . . . Terminals . | . . . . . Fabricators . | . . . . . Repair Stations . | . . . . . Recycling Units . | . . . . . Scanalyzers . | . . . . . Garrison Access . | . . . . . Data Cores Recovered . | . . . . . Used . | . . . . . Hacking Detections . | . . . . . Full Trace Events . | . . . . . Feedback Events . | . . . . . Feedback Blocked . | . . . . . Robot Schematics Acquired . | . . . . . Robots Built . | . . . . . Authchips . | . . . . . Time . | . . . . . Total Robot Build Rating . | . . . . . Part Schematics Acquired . | . . . . . Parts Built . | . . . . . Authchips . | . . . . . Time . | . . . . . Total Part Build Rating . | . . . . . Parts Repaired . | . . . . . Time . | . . . . . Parts Recycled . | . . . . . Recycled Matter . | . . . . . Retrieved Matter . | . . . . . Retrieved Components . | . . . . . Parts Scanalyzed . | . . . . . Part Schematics Acquired . | . . . . . Parts Damaged . | . . . . . Bothacking | -11 -10 -10 -10 -8 ------------ Run | Yrd Mat Min Sub Mat Used RIF Installer . | . . . . . Robots Hacked . | . . . . . Non-combat . | . . . . . Combat . | . . . . . Robot Hacks Applied . | . . . . . Relay Couplers Released . | . . . . . Fabnet Peak Effective % . | . . . . . Robots Rewired . | . . . . . Allies Hacked . | . . . . . Hacks Repelled . | . . . . . Allies | -11 -10 -10 -10 -8 -------- Run | Yrd Mat Min Sub Mat Total Allies . | . . . . . Largest Group . | . . . . . Highest-Rated Group . | . . . . . Highest-Rated Ally . | . . . . . Total Orders . | . . . . . Ally Attacks . | . . . . . Total Damage . | . . . . . Kills . | . . . . . Allies Corrupted . | . . . . . Allies Melted . | . . . . . Intel | -11 -10 -10 -10 -8 ------- Run | Yrd Mat Min Sub Mat Robot Analysis Total . | . . . . . Derelict Logs Recovered 2 | . . 1 1 . Drone Launches . | . . . . . Drone Recoveries . | . . . . . Exploration | -11 -10 -10 -10 -8 ------------- Run | Yrd Mat Min Sub Mat Turns Passed 2972 | 54 190 1031 956 741 Spaces Moved 1950 | 50 210 953 518 219 Core 58 | 4 . . 2 52 Treads . | . . . . . Legs 339 | . . . 307 32 Wheels 1553 | 46 210 953 209 135 Hover . | . . . . . Flight . | . . . . . Fastest Speed 50 | 50 90 80 80 100 Average Speed 126 | 86 90 85 174 237 Slowest Speed 3750 | 90 90 100 340 3750 Overloaded Moves . | . . . . . Propulsion Burnouts . | . . . . . Robots Hopped . | . . . . . Cave-ins Triggered . | . . . . . Exploration Rate (%) 42 | 3 38 99 51 21 Regions Visited 4 Branch Regions 2 Pre-discovered Areas 2 | . . 1 1 . Known Exits Taken 2 | . . 1 1 . Unknown Exits Taken 2 | 1 1 . . . Scrap Searched 1 | . . 1 . . Spaces Dug . | . . . . . Terrain Destroyed 52 | . . 10 . 42 Melee . | . . . . . Projectile 4 | . . . . 4 AOE 48 | . . 10 . 38 Terrain Rammed . | . . . . . Walls Destroyed . | . . . . . Machines Disabled . | . . . . . Actions | -11 -10 -10 -10 -8 --------- Run | Yrd Mat Min Sub Mat Total 2264 | 57 210 1120 545 332 Wait 134 | . . 124 1 9 Move 1946 | 49 209 952 517 219 Hop . | . . . . . Pick Up 22 | 2 . 7 1 12 Fast Attach 17 | 6 1 2 2 6 Attach 9 | . . . 2 7 Detach 6 | . . 1 1 4 Swap 6 | . . 3 1 2 Drop 7 | . . 5 1 1 Fire 109 | . . 26 12 71 Melee 7 | . . . 7 . Ram 1 | . . . . 1 Kick . | . . . . . Crush . | . . . . . Escape Stasis . | . . . . . Rewire . | . . . . . Trap . | . . . . . Miscellaneous . | . . . . . Route ------- -11/Scrapyard -10/Materials (discovered 2 exits: *Mat / [*Min]) -10/Mines (discovered 3 exits: *Mat x2 / *Sub) -10/Subcaves -8/Materials History --------- Turn | Location | Event 7 | -11/Scrapyard | Discovered new exit (range 15) 55 | -11/Scrapyard | Entered Materials 101 | -10/Materials | Discovered new exit (range 14) 146 | -10/Materials | Discovered new exit (range 12) 245 | -10/Materials | Entered Mines 305 | -10/Mines | Build established: Mutant 426 | -10/Mines | Discovered new exit (range 15) 512 | -10/Mines | Learned location of Zion (-6) 628 | -10/Mines | Found a damaged Exp. Sensor Array with a note attached 630 | -10/Mines | Found Prototype Device 789 | -10/Mines | Found a hidden stash of uninstalled traps 813 | -10/Mines | Discovered new exit (range 9) 877 | -10/Mines | Identified exit to Materials 1274 | -10/Mines | Discovered new exit (range 3) 1275 | -10/Mines | Identified exit to Subcaves 1276 | -10/Mines | Entered Subcaves 1349 | -10/Subcaves | Shifting Twisted Machinery released Mak. Hammer 1458 | -10/Subcaves | Visited 4L-MR0's lab 1473 | -10/Subcaves | Found Prototype Leg 1473 | -10/Subcaves | Identified Cargo Legs 1475 | -10/Subcaves | Attached Cargo Legs, gained temporary slots: Utility x2 1623 | -10/Subcaves | Core integrity fell below 50% 1669 | -10/Subcaves | Shifting Twisted Machinery released Sub. Monowheel 1678 | -10/Subcaves | Shifting Twisted Machinery released Humpback 1999 | -10/Subcaves | Build established: Hauler-Mutant 2164 | -10/Subcaves | Discovered new exit (range 11) 2201 | -10/Subcaves | Identified exit to Materials 2232 | -10/Subcaves | Entered Materials 2232 | -8/Materials | Evolved 4 slots: Power x1, Propulsion x2, Utility x1 2687 | -8/Materials | Garrison activated, responded to threat 2821 | -8/Materials | Lost 3 parts (1p2w) 2838 | -8/Materials | Core integrity fell below 50% 2878 | -8/Materials | Core integrity fell below 20% 2935 | -8/Materials | Lost 8 parts (2p3n1u2w) 2973 | -8/Materials | Destroyed self with Improved Grenade Launcher Last Messages --------------- 02937_ B-36 Bruiser destroyed. 02937_ U-05 Engineer lays Concrete. 02937_ ALERT: Construction progress impeded, dispatching reinforcements to local area. 02938_ U-05 Engineer builds a Wall. 02944_ The unstable cave ceiling collapses. 02945_ Triggered Blade Trap. 02945_ Massive razor-sharp blades shoot up from within the floor. 02945_ Imp. Grenade Launcher severed. 02945_ Broken Adv. Targeting Computer severed. 02946_ U-05 Engineer builds a Door. 02947_ The unstable cave ceiling collapses. 02953_ Triggered Blade Trap. 02953_ Massive razor-sharp blades shoot up from within the floor. 02953_ Signal Interpreter severed. 02955_ Triggered Blade Trap. 02955_ Massive razor-sharp blades shoot up from within the floor. 02959_ Connecting with Terminal... 02968_ Acquired Imp. Grenade Launcher. 02972_ U-05 Engineer lays Concrete. Map ----- +----------------------------------------------------+ | ?????# Y"# #????????????? | | ?????# ""# ########????????????? | | ?????# !! #= #???????????????????? | | ?????# ! """*#[ #???????????????????? | | ?????#!! """=+ #???????????????????? | | ?????# """=# #???????????????????? | | ?????# [# #???????????????????? | | ?????## ####### ##??????????????????? | | ??????###????# ##########?????????? | | ?????????????# ????????? | | ?????????????# ???????? | | ?????????????# ????????? | | ?????????????# ###########????????? | | ?????????????# #####??????????????????? | | ?????????????# #??????????????????????? | | ?????????????# #??????????????????????? | | ?????????????#r#??????????????????????? | | ?????????????#w#??????????????????????? | | ?????????????# ####?????? ???????????? | | ???????????### ##T###?? ????????????? | | ???????????# #? ?????????????? | | ???????????# r # ??????????????? | | ???????????# """" + ??????????? | | ????######?# """" # """ """ ????????? | | ???? ?# """" #?""" ????????????? | | ??? ! """ # @ #??""?????????????? | | ??# """ # ! #???#?????????????? | | ??# """ + #?????????????????? | | ??# # ###???????????????? | | ??# """ # u #???????????????? | | ??# """?# #???????????????? | | ??# """?# % #???????????????? | | ??# ??# ??????????????? | | ???#??########+## # ] ????????????? | | ??????# ] #???????????? | | ??????#== # #??????????? | | ??????#== #u ##??????????? | | ??????# =## +##???????????? | | ??????########## # # ??????????? | | ??????????????? # #######?????? | | ??????????????? = """ / #????? | | ??????????????? + + "T" #????? | | ??????????????? # ## # /[#????? | | ?????????????? # ## #?? /]#????? | | ????????????? ?### #### #???? ###????? | | ????????????###???# #??# #????????????? | | ?????????????###### #??# #????????????? | | ?????????????? + ####+##???????????? | | ?????????????????# # #???????????? | | ?????????????????# # /=]#???????????? | +----------------------------------------------------+ Best States ------------- Heat Dissipation 31 Energy Generation 19 Energy Capacity 430 Matter Stores 300 Matter Capacity 300 Sight Range 16 Terrain Scan Density 10 Weapon Shielding 33 Evasion (%) 55 Targeting Accuracy 8 Item Schematics ----------------- None Robot Schematics ------------------ None Fabricated ------------ Nothing Alien Tech Used ----------------- None Achievements -------------- Tank Challenges ------------ None Game ------ Seed ChromaticRemoteInterrupter Manual? 0 Play Time 00:19:15 Cumulative 8.2 hours Start 2024.11.08 @ 13:18:08 End 2025.02.28 @ 17:40:44 Sessions 5 Manual Loads 0 Difficulty Rogue Special Mode None Game No. 16 Rogue 16 Adventurer 0 Explorer 0 Win Type - Total 0 Types 0/0/0/0/0/0/0/0/0 Lore% 7 Gallery% 19 Achievement% 19 Wizard Run 0 Options --------- Layout 0 ASCII 0 Keyboard 1 Movement Numpad Keybinds 0 Fullscreen 2 Font 24/Terminus Map View 76x50 Zoom Use 0% Tactical HUD 1 Map Filters NONE Filters NONE Steam 1 RUN: ee1a244f-76de-4c26-8935-c084c1e668b4